[Event "2nd Bundesliga Nord 2024-25"]
[Site "Germany"]
[Date "2025.02.23"]
[Round "9.12"]
[White "Bashylina, Luisa"]
[Black "Motylev, Alexander"]
[Result "1/2-1/2"]
[Annotator "TA"]
[ECO "E49"]
[WhiteElo "2105"]
[BlackElo "2603"]
[PlyCount "74"]
[EventDate "2024.11.29"]
[EventType "team-tourn"]
[EventCountry "GER"]
[SourceTitle "playchess.com"]
[Source "ChessBase"]
[SourceQuality "1"]
[TimeControl "40/5400+30:1800+30"]

{[%evp 19,74,-14,-5,-14,-13,-19,0,-38,0,0,0,0,0,0,0,0,0,-21,8,-27,-16,-14,-16,-53,-52,-95,-108,-89,-54,-105,-65,-111,-84,-130,0,0,0,0,0,0,0,0,0,0,0,0,0,0,0,0,0,0,0,0,0,0,0]} 1. d4 {[%emt 0:00:03]} Nf6 {[%emt 0:02:20]} 2. c4 {[%emt 0:00:07]} e6 {[%emt 0:00:13]} 3. Nc3 {[%emt 0:00:05]} Bb4 {[%emt 0:00:17]} 4. e3 {[%emt 0:00:05]} O-O {[%emt 0:00:21]} 5. Bd3 {[%emt 0:00:04]} d5 {[%emt 0:01:10]} 6. Nge2 {[%emt 0:00:05]} dxc4 {[%emt 0:03:08]} 7. Bxc4 {[%emt 0:00:11]} c5 {[%emt 0:00:06]} 8. a3 {[%emt 0:00:06]} Bxc3+ {[%emt 0:00:07]} 9. bxc3 {[%emt 0:00:04]} Qc7 {[%emt 0:00:23]} 10. Bd3 {[%emt 0:00:16]} Nc6 {[%emt 0:02:33]} 11. f4 {[%emt 0:02:20] E49: Nimzo-Indian: Rubinstein: 5 Bd3 d5 6 a3 Bxc3+ 7 bxc3.} b6 {[%emt 0:05:46]} 12. O-O {[%emt 0:01:59]} Ne7 {[%emt 0:01:02]} 13. Ng3 {[%emt 0:05:14]} Bb7 {[%emt 0:00:57]} 14. c4 {[%emt 0:01:49]} cxd4 {[%emt 0:01:37]} 15. exd4 {[%emt 0:00:28]} Nf5 {[%emt 0:00:22]} 16. Nxf5 {[%emt 0:00:22] Successful Defense White} exf5 {[%emt 0:00:07]} 17. a4 $146 {[%emt 0:00:51][%cal Oc1a3]} ({Predecessor:} 17. Bb2 Be4 18. d5 Bxd3 19. Qxd3 Ne4 20. Be5 {½-½ Zemach,N (2384)-Samadov,R (2509) Dortmund Sparkassen op-A 51st 2024 (6)}) 17... Be4 {[%emt 0:02:50]} 18. Bb2 {[%emt 0:05:51]} Rac8 {[%emt 0:01:14]} 19. Rc1 {[%emt 0:01:44]} Bxd3 {[%emt 0:12:57]} 20. Qxd3 {[%emt 0:00:28]} Ne4 {[%emt 0:00:05]} 21. g3 {[%emt 0:17:18]} Rfd8 {[%emt 0:03:22]} 22. Rfd1 {[%emt 0:09:32][%cal Oa4a5]} Rd6 $1 {[%emt 0:08:12]} 23. d5 {[%emt 0:05:14][%cal Oa4a5] [#]} Rg6 $1 {[%emt 0:01:23][%cal Oh7h5]} 24. Be5 {[%emt 0:06:50]} (24. a5 $1 $15) 24... Qc5+ {[%emt 0:02:18]} 25. Qd4 {[%emt 0:01:14][%csl Oe4] Strong Square Black (e4)} (25. Bd4 $15 {might be stronger.} Qb4 26. Be5) 25... Qa3 $17 {[%emt 0:08:44][%cal Oe4g3] Hoping for ...Nxg3!.} 26. Ra1 {[%emt 0:06:44] [#]} ({White should play} 26. Qd3 Qxa4 27. Ra1) 26... Rxg3+ {[%emt 0:34:38]} 27. hxg3 $11 {[%emt 0:00:33] The position is equal.} Qxg3+ {[%emt 0:00:04]} 28. Kf1 {[%emt 0:02:14]} Qf3+ {[%emt 0:00:19]} 29. Kg1 $1 {[%emt 0:16:00][%cal Oa1a2]} Qg4+ {[%emt 0:00:14]} 30. Kf1 {[%emt 0:02:59]} Rxc4 {[%emt 0:03:18]} 31. Rac1 {[%emt 0:02:51] Wards off Rc2} Qf3+ {[%emt 0:01:19]} (31... Rxd4 32. Rc8#) 32. Kg1 $1 {[%emt 0:01:37]} Qg3+ {[%emt 0:02:36]} (32... Rxd4 33. Rc8#) 33. Kf1 {[%emt 0:00:09]} Qf3+ {[%emt 0:01:42]} (33... Rxd4 34. Rc8#) 34. Kg1 $1 {[%emt 0:00:15]} Qg3+ {[%emt 0:00:52]} (34... Rxd4 35. Rc8#) 35. Kf1 {[%emt 0:00:38]} Qh3+ {[%emt 0:00:49]} (35... Rxd4 36. Rc8#) 36. Kg1 $1 {[%emt 0:00:38]} Qg4+ {[%emt 0:00:21]} (36... Rxd4 37. Rc8#) 37. Kf1 {[%emt 0:00:26] And now Qd3 would win.} Qf3+ {[%emt 0:00:34] Weighted Error Value: White=0.11 (very precise) /Black=0.09 (flawless)   Mistake:       	White=3     	Black=1      Inaccurate:     	White=4     	Black=3      OK:         	White=7     	Black=8      Best:        	White=3     	Black=1      Strong:       	White=4     	Black=2} ({Not} 37... Rxd4 38. Rc8#) 1/2-1/2

[Event "2nd Bundesliga Nord 2024-25"]
[Site "Germany"]
[Date "2025.02.23"]
[Round "9.13"]
[White "Sivuk, Vitaly"]
[Black "Schaefer, Markus"]
[Result "1/2-1/2"]
[Annotator "TA"]
[ECO "D60"]
[WhiteElo "2510"]
[BlackElo "2344"]
[PlyCount "108"]
[EventDate "2024.11.29"]
[EventType "team-tourn"]
[EventCountry "GER"]
[SourceTitle "playchess.com"]
[Source "ChessBase"]
[SourceQuality "1"]
[TimeControl "40/5400+30:1800+30"]

{[%evp 19,108,41,57,27,37,47,29,22,20,16,22,25,25,21,18,11,12,12,12,12,12,10,8,6,18,20,21,21,13,10,2,0,0,-21,0,0,0,0,0,0,14,18,16,10,20,16,16,18,17,16,18,20,19,18,151,138,146,149,198,200,213,205,184,132,123,123,120,120,124,8,8,8,8,0,0,0,0,0,0,0,0,0,0,0,0,0,0,0,0,0,0]} 1. d4 {[%emt 0:03:22]} d5 {[%emt 0:00:20]} 2. c4 {[%emt 0:00:27]} c6 {[%emt 0:00:04]} 3. Nf3 {[%emt 0:00:18]} Nf6 {[%emt 0:00:04]} 4. Nc3 {[%emt 0:00:25]} e6 {[%emt 0:00:10]} 5. Bg5 {[%emt 0:01:13]} Be7 {[%emt 0:02:17]} 6. e3 {[%emt 0:00:14]} O-O {[%emt 0:00:21]} 7. Bd3 {[%emt 0:01:09]} Nbd7 {[%emt 0:10:44]} 8. O-O {[%emt 0:01:49]} dxc4 {[%emt 0:04:49]} 9. Bxc4 {[%emt 0:00:06]} Nd5 {[%emt 0:00:20] 9...b5 is more fashionable.} 10. Bxe7 {[%emt 0:00:49]} Qxe7 {[%emt 0:00:04]} 11. Ne2 {[%emt 0:10:33] D60: Queen's Gambit Declined: Classical: Unusual White 7th moves.} N5b6 {[%emt 0:11:28]} 12. Bb3 {[%emt 0:00:55]} e5 {[%emt 0:09:45]} 13. Rc1 {[%emt 0:01:39] White has an edge.} exd4 {[%emt 0:04:32]} 14. Nfxd4 $146 {[%emt 0:03:36]} ({Predecessor:} 14. Qxd4 Nf6 15. Nf4 Bg4 16. Ne5 Rad8 17. Qc3 Nbd7 18. Nxg4 Nxg4 19. Qa5 Qe5 20. Qxa7 {1-0 Sivuk,V (2552)-Mokshanov,A (2442) Cheliabinsk Panchenko Memorial op-A 2021 (4)}) 14... Nc5 {[%emt 0:10:17][%cal Bd7c5,Bc5e4,Be4f6,Bf6g4][%mdl 32]} 15. Bc2 {[%emt 0:00:44]} Ne4 {[%emt 0:13:13]} 16. Nf4 {[%emt 0:15:38]} Nf6 {[%emt 0:01:45]} 17. Qd2 {[%emt 0:02:47]} Rd8 {[%emt 0:07:17] [#]} 18. Rfd1 {[%emt 0:05:15][%cal Od4c6]} Bg4 {[%emt 0:04:25][%cal Oc6c5]} 19. f3 {[%emt 0:01:55]} c5 {[%emt 0:00:42]} 20. fxg4 {[%emt 0:00:24]} cxd4 {[%emt 0:00:11]} 21. g5 {[%emt 0:10:34]} Ng4 {[%emt 0:07:09]} 22. exd4 {[%emt 0:01:04]} Qxg5 {[%emt 0:00:09]} 23. Bb3 {[%emt 0:05:32]} Rac8 {[%emt 0:01:18] Against Rc7} 24. Rxc8 {[%emt 0:04:17]} Nxc8 {[%emt 0:03:47]} 25. h3 {[%emt 0:08:23]} Nf6 {[%emt 0:01:53]} 26. Re1 {[%emt 0:13:39]} (26. Qc1 $5 Nd6 27. Nd5 Qxc1 28. Nxf6+ (28. Rxc1 Nxd5 29. Bxd5 Rd7 $11) 28... gxf6 29. Rxc1 $11) 26... Re8 {[%emt 0:00:11] [#]} 27. Rxe8+ {[%emt 0:00:58]} Nxe8 {[%emt 0:00:04]} 28. Qe3 {[%emt 0:02:58][%cal Re3e8]} Qe7 {[%emt 0:00:04]} 29. Qe5 {[%emt 0:00:29]} Qxe5 {[%emt 0:04:21]} 30. dxe5 $11 {[%emt 0:00:06][%cal Of4e6][%mdl 4096] Endgame KBN-KNN} Kf8 {[%emt 0:01:02]} 31. Kf2 {[%emt 0:00:08]} Nc7 {[%emt 0:00:44]} 32. Ke3 {[%emt 0:00:26]} Nb6 {[%emt 0:01:10]} 33. Kd4 {[%emt 0:00:32]} Ke7 {[%emt 0:01:12]} 34. Nh5 {[%emt 0:00:51]} Ne8 {[%emt 0:00:04]} 35. Ng3 {[%emt 0:01:17]} g6 {[%emt 0:00:36]} 36. Ne4 {[%emt 0:00:08]} h6 {[%emt 0:00:51] Wards off Ng5} (36... Nd7 $11 {remains equal.}) 37. Nc5 $16 {[%emt 0:00:22]} Ng7 {[%emt 0:00:41]} 38. g4 {[%emt 0:01:23] Prevents Nf5+. White is more active.} Ne6+ {[%emt 0:00:48]} (38... f5 $16) 39. Bxe6 $18 {[%emt 0:00:40]} fxe6 {[%emt 0:00:04]} 40. Nxb7 {[%emt 0:00:13] KN-KN. White is a pawn up.} Nd5 {[%emt 0:00:05]} 41. Nd6 {[%emt 0:31:45]} (41. Ke4 $18) 41... Nf4 $16 {[%emt 0:13:14]} 42. Nc8+ {[%emt 0:00:00]} Kd7 {[%emt 0:00:14]} 43. Nxa7 {[%emt 0:00:00]} Nxh3 {[%emt 0:00:09]} 44. a4 {[%emt 0:00:00]} ({White should play} 44. Nb5 $16) 44... Nf2 $11 {[%emt 0:03:35] The position is equal.} 45. a5 {[%emt 0:00:00]} h5 $1 {[%emt 0:06:06]} 46. gxh5 {[%emt 0:00:00]} gxh5 {[%emt 0:00:08]} 47. Nb5 {[%emt 0:00:00] Black must now prevent Nd6.} (47. b4 $5 h4 $8 48. Ke3 $11) 47... h4 {[%emt 0:02:33]} 48. a6 {[%emt 0:00:00] Threatening mate with a7.} Kc6 {[%emt 0:00:18][%cal Oh4h3] Threatens to win with ...h3!.} 49. Ke3 {[%emt 0:00:01]} (49. a7 $5 Kb7 $8 50. Ke3 Nd1+ 51. Kf4 $11) 49... Nd1+ {[%emt 0:01:41]} (49... Kxb5 $2 50. a7 $18 (50. Kxf2 Kxa6 51. Kf3 Kb5 $11)) 50. Kf3 {[%emt 0:01:21]} Nxb2 {[%emt 0:00:54]} (50... Kxb5 $2 {loses.} 51. a7 $18) 51. Nd4+ {[%emt 0:00:17]} Kb6 {[%emt 0:00:17]} 52. Nxe6 {[%emt 0:00:08]} Nc4 {[%emt 0:00:51]} 53. Kg4 {[%emt 0:00:16]} Nxe5+ {[%emt 0:00:08]} 54. Kxh4 {[%emt 0:00:05]} Kxa6 {[%emt 0:00:03] Black defended with fortune.   Weighted Error Value: White=0.08 (flawless) /Black=0.09 (flawless)   Mistake:       	White=2     	Black=2      OK:         	White=18    	Black=23     Best:        	White=2     	Black=2      Strong:       	---       	Black=1} 1/2-1/2

[Event "2nd Bundesliga Nord 2024-25"]
[Site "Germany"]
[Date "2025.02.23"]
[Round "9.14"]
[White "Zolfagharian, Kevin"]
[Black "Galperin, Platon"]
[Result "0-1"]
[Annotator "TA"]
[ECO "A50"]
[WhiteElo "2215"]
[BlackElo "2495"]
[PlyCount "70"]
[EventDate "2024.11.29"]
[EventType "team-tourn"]
[EventCountry "GER"]
[SourceTitle "playchess.com"]
[Source "ChessBase"]
[SourceQuality "1"]
[TimeControl "40/5400+30:1800+30"]

{[%evp 13,70,18,21,6,29,20,22,37,29,-16,0,0,0,-8,2,-28,-16,-57,-60,-64,-54,-91,-73,-70,-83,-80,-77,-129,-129,-127,-127,-115,-131,-160,-160,-193,-183,-187,-172,-171,-185,-172,-174,-226,-216,-230,-210,-344,-346,-306,-328,-304,-227,-229,-165,-168,-152,-761,-746]} 1. Nf3 {[%emt 0:00:05]} Nf6 {[%emt 0:03:31]} 2. g3 {[%emt 0:01:35]} b6 {[%emt 0:00:28]} 3. Bg2 {[%emt 0:03:41]} Bb7 {[%emt 0:00:06]} 4. O-O {[%emt 0:00:38]} g6 {[%emt 0:00:05]} 5. c4 {[%emt 0:06:31]} Bg7 {[%emt 0:01:05]} 6. Nc3 {[%emt 0:01:12]} O-O {[%emt 0:00:09]} 7. d4 {[%emt 0:01:20]} Ne4 {[%emt 0:00:07]} 8. Bd2 {[%emt 0:00:05] A50: Queen's Fianchetto Defence (1 d4 Nf6 2 c4 b6).} Nxc3 {[%emt 0:05:13]} 9. Bxc3 {[%emt 0:00:25]} Be4 {[%emt 0:00:08]} 10. Rc1 {[%emt 0:05:02] The position is equal.} d5 {[%emt 0:00:07]} 11. c5 $146 {[%emt 0:09:21]} ({Predecessor:} 11. Qa4 c6 12. Rfd1 dxc4 13. Qxc4 b5 14. Qb3 a5 15. a4 b4 16. Be1 Qd5 17. Qxd5 Bxd5 {0-1 Frois,A (2273)-Iturrizaga Bonelli,E (2598) Lisbon Portugal rapid 2op 2020 (8)}) 11... bxc5 {[%emt 0:03:03]} 12. dxc5 {[%emt 0:00:26]} Bxc3 {[%emt 0:02:45]} 13. Rxc3 {[%emt 0:01:59]} a5 {[%emt 0:00:05]} 14. Qd2 {[%emt 0:09:58]} c6 {[%emt 0:00:43]} 15. Qh6 {[%emt 0:18:13]} Bxf3 {[%emt 0:00:22]} 16. Rxf3 {[%emt 0:04:10]} e5 {[%emt 0:01:37]} 17. g4 {[%emt 0:02:29] White is on the road to losing.} f6 {[%emt 0:00:19]} 18. e4 {[%emt 0:02:51] and exd5 should not be overlooked} d4 {[%emt 0:00:47][%csl Od4] Black has a strong passed pawn} 19. Rh3 {[%emt 0:03:22][%csl Gh3][%cal Rh6h7]} Qe7 {[%emt 0:00:25][%cal Ob8a6] Successful Defense Black} 20. f4 {[%emt 0:02:02]} ({Better is} 20. Rc1) 20... exf4 {[%emt 0:07:19]} 21. Qxf4 {[%emt 0:01:09][%cal Oe4e5]} Nd7 {[%emt 0:01:15][%cal Bb8d7,Bd7e5,Be5g4,Bg4e3][%mdl 32]} 22. Qc7 {[%emt 0:05:38]} Rac8 {[%emt 0:01:06]} 23. Qxa5 {[%emt 0:06:04] [#]} Ne5 {[%emt 0:00:07] Prevents Rd3.} ({Don't take} 23... Nxc5 24. Qb4 Rcd8 25. Rhf3 $17 (25. Rc1 d3 $15)) (23... Qxc5 24. Qxc5 Nxc5 25. b4 $11) 24. Qb4 {[%emt 0:09:48] [#]} Rfd8 $36 {[%emt 0:00:11][%mdl 2048] Black has strong initiative.} (24... Nxg4 25. Qxd4 Ra8 26. Rg3 $16) 25. Rc1 {[%emt 0:03:41]} Rb8 {[%emt 0:00:38]} 26. Qd2 {[%emt 0:00:41]} Nxg4 {[%emt 0:00:06]} 27. Rg3 {[%emt 0:01:01]} Ne3 {[%emt 0:00:25]} 28. b3 {[%emt 0:00:12]} (28. b4 $142) 28... Qe5 $19 {[%emt 0:00:24]} 29. Qd3 {[%emt 0:00:49]} Kh8 {[%emt 0:00:08]} 30. Bh1 {[%emt 0:00:28]} (30. Kh1 $142) 30... f5 {[%emt 0:00:34]} 31. exf5 {[%emt 0:00:31]} gxf5 {[%emt 0:00:06] aiming for ...Rg8.} ({Less strong is} 31... Nxf5 32. Rh3 $17) 32. Bxc6 {[%emt 0:00:31]} Rbc8 {[%emt 0:01:29]} 33. Bf3 {[%emt 0:00:26]} Rxc5 {[%emt 0:00:14]} 34. Rxc5 {[%emt 0:00:30]} Qxc5 {[%emt 0:00:01]} 35. Be2 $2 {[%emt 0:00:21]} (35. Kh1 $17) 35... f4 {[%emt 0:00:32] Weighted Error Value: White=0.48/Black=0.12 (very precise)   Loses game:     	White=1     	---        Mistake:       	White=3     	---        Inaccurate:     	White=4     	---        OK:         	White=5     	Black=11     Best:        	White=1     	Black=2} 0-1

[Event "2nd Bundesliga Nord 2024-25"]
[Site "Germany"]
[Date "2025.02.23"]
[Round "9.15"]
[White "Vetoshko, Volodymyr"]
[Black "Michalczak, Thomas"]
[Result "1-0"]
[Annotator "TA"]
[ECO "A57"]
[WhiteElo "2529"]
[BlackElo "2194"]
[PlyCount "101"]
[EventDate "2024.11.29"]
[EventType "team-tourn"]
[EventCountry "GER"]
[SourceTitle "playchess.com"]
[Source "ChessBase"]
[SourceQuality "1"]
[TimeControl "40/5400+30:1800+30"]

{[%evp 14,101,13,26,93,60,91,27,42,-14,50,-16,-2,-1,0,-12,26,5,15,0,54,27,27,0,65,103,57,44,50,49,50,39,48,38,36,40,62,45,92,18,117,46,47,38,64,36,139,120,169,85,166,148,202,103,254,164,273,222,675,229,294,59,712,703,626,16,12,0,45,4,4,8,38,38,54,46,43,60,447,450,432,396,29988,29969,29994,29995,29995,29996,29996,25]} 1. d4 {[%emt 0:02:25]} Nf6 {[%emt 0:00:06]} 2. c4 {[%emt 0:00:15]} c5 {[%emt 0:01:27]} 3. d5 {[%emt 0:00:31]} b5 {[%emt 0:00:06]} 4. cxb5 {[%emt 0:00:13]} a6 {[%emt 0:00:05]} 5. e3 {[%emt 0:02:23]} axb5 {[%emt 0:00:25]} 6. Bxb5 {[%emt 0:00:23]} Bb7 {[%emt 0:00:08]} 7. Nc3 {[%emt 0:01:18]} Qa5 {[%emt 0:01:56]} 8. Bd2 {[%emt 0:09:04]} e6 {[%emt 0:00:31] A57: Benko/Volga Gambit.} (8... Qb6 $1 $11) 9. Nge2 {[%emt 0:13:02]} Qb6 {[%emt 0:06:01]} 10. a4 {[%emt 0:10:22]} (10. Nf4 $16) 10... Nxd5 {[%emt 0:03:03] White has an edge.} 11. O-O {[%emt 0:00:56]} (11. Nxd5 $14 Bxd5 12. O-O) 11... Be7 {[%emt 0:06:18]} (11... Nb4 $11) 12. e4 $146 {[%emt 0:10:25]} (12. Nxd5 $14 Bxd5 13. Bc3) (12. Nxd5 Bxd5 13. Bc3 O-O 14. Ng3 f5 15. e4 fxe4 16. Qg4 Bf6 17. Nxe4 Bxe4 18. Qxe4 {½-½ Jacob,V (2275)-Vasilev,M (2480) Tarragona op 4th 2003 (3)}) 12... Nxc3 {[%emt 0:03:59]} 13. Bxc3 {[%emt 0:00:59] A sharp opening} O-O {[%emt 0:08:46]} 14. Qd3 {[%emt 0:08:12][%cal Oa4a5]} d5 {[%emt 0:01:16]} 15. a5 {[%emt 0:00:57]} Qc7 {[%emt 0:03:57]} 16. exd5 {[%emt 0:05:59]} exd5 {[%emt 0:00:33]} (16... Bxd5 $11 17. a6 Bc6) 17. Rfc1 {[%emt 0:16:13][%cal Ob2b4]} Na6 {[%emt 0:12:28]} 18. Ng3 {[%emt 0:00:15]} (18. b4 $5) 18... d4 {[%emt 0:03:31] [#]} (18... Bg5 $11) 19. Bxd4 $1 $14 {[%emt 0:06:20]} Rfd8 {[%emt 0:00:20]} 20. Qe3 {[%emt 0:01:34][%cal Od4g7]} (20. Qc3 $5 Rxd4 21. Bxa6 $16) 20... Rxd4 {[%emt 0:01:26]} 21. Bxa6 $1 {[%emt 0:00:07]} Rb4 {[%emt 0:31:16]} (21... Bxa6 $2 22. Qxd4 h6 (22... Qxg3 $2 23. Qe4 $18) 23. Qg4 $18) 22. Bxb7 {[%emt 0:00:23]} Qxb7 {[%emt 0:00:43] [#]} 23. a6 $1 {[%emt 0:00:56]} Qa7 {[%emt 0:00:05]} 24. Ra2 {[%emt 0:03:55]} Rb6 {[%emt 0:01:26][%cal Ob6e6]} 25. Ne4 {[%emt 0:03:11]} Re6 {[%emt 0:02:24]} (25... Rxa6 $14 26. Rxa6 Qxa6) 26. g3 {[%emt 0:01:07]} (26. Rca1 $16) 26... Qb6 {[%emt 0:01:44]} (26... Rb8 $1 $11 {keeps the balance.}) 27. Qd3 {[%emt 0:01:09]} (27. Qf4 $1 $16) 27... Qc6 {[%emt 0:03:30]} 28. f3 {[%emt 0:01:19]} Qb6 {[%emt 0:02:19] ...c4+ is the strong threat. Against b4} 29. Qc4 {[%emt 0:00:21]} (29. Kf1 Ra7 30. Qc4 Rxa6 31. Qxa6 Qxa6+ 32. Rxa6 Rxa6 33. Nxc5 Rh6 34. Rc2) 29... Rc6 {[%emt 0:02:52]} (29... Rxa6 $14 30. Qxa6 (30. Nxc5 $2 Rxa2 31. Qxa2 Bxc5+ $19) 30... Qxa6 31. Rxa6 Rxa6) 30. Rca1 $16 {[%emt 0:00:44] White is more active.} Ra7 {[%emt 0:00:50]} (30... Qa7 $16 31. Kh1 Re6) 31. Kg2 {[%emt 0:00:19]} (31. Nc3 $18) 31... Qc7 {[%emt 0:00:24]} (31... Qb4 $16 32. Qe2 Bf8) 32. Nc3 {[%emt 0:00:38]} Qc8 {[%emt 0:00:36]} (32... Qd7 $16 33. Kh1 Rd6) 33. Nd5 {[%emt 0:00:29]} (33. Nb5 $18 Ra8 (33... Raxa6 $2 34. Na7 $18) 34. a7) 33... Bd8 $2 {[%emt 0:00:42]} (33... Bf8 $16) 34. Re1 {[%emt 0:00:33]} Qd7 {[%emt 0:00:24] Prevents Re8+} (34... Kf8 {is a better defense.} 35. b4 Raxa6) 35. b3 {[%emt 0:00:27]} Rd6 $2 {[%emt 0:00:17] [#]} (35... h5 36. Qd3 h4) 36. Rae2 $2 {[%emt 0:00:33]} h6 {[%emt 0:00:55]} 37. Nf4 {[%emt 0:00:31]} (37. Re8+ $6 Kh7 $16) ({White should play} 37. Re7 $18 Bxe7 38. Rxe7 Rxd5 39. Rxd7 Raxd7 40. b4) 37... Rc6 $2 {[%emt 0:01:19][%mdl 8192]} (37... Rdxa6 $14 38. Nd3 (38. Qxc5 Rd6 $11) 38... Bb6) 38. Re8+ $18 {[%emt 0:00:22] Black is weak on the light squares} Kh7 {[%emt 0:00:05]} 39. Qc2+ $2 {[%emt 0:00:37]} (39. Qe4+ $18 g6 40. Rxd8 Qxd8 41. Qxc6) 39... g6 $11 {[%emt 0:00:08]} 40. R8e5 $40 {[%emt 0:00:31][%mdl 128] Black needs to defend precisely.} (40. R1e2 {is more complex.} Bf6 41. h4 Rcxa6 42. Qxc5 Ra2 43. Rxa2 Rxa2+ 44. Re2) 40... Qc8 {[%emt 0:01:29][%cal Od8f6]} 41. Qc4 {[%emt 0:30:27] Re8 is the strong threat.} Qxa6 {[%emt 0:01:11]} 42. Rxc5 {[%emt 0:00:00]} Rxc5 {[%emt 0:08:16]} (42... Qxc4 {simplifies} 43. Rxc4 Rd6 44. Re2 Ra3) 43. Qxc5 {[%emt 0:00:00]} Bg5 {[%emt 0:00:08]} 44. Nd5 {[%emt 0:00:00]} Qa2+ {[%emt 0:00:09]} 45. Kh3 {[%emt 0:00:00]} Rb7 $2 {[%emt 0:04:01][%mdl 8192] [#]} ({Better is} 45... Ra8 $14) 46. f4 $1 $18 {[%emt 0:00:00]} Qd2 {[%emt 0:05:37] [#]} 47. Re5 {[%emt 0:00:00]} f5 $2 {[%emt 0:09:47]} (47... Qd1 $18) 48. fxg5 {[%emt 0:00:00] White mates.} hxg5 {[%emt 0:00:02]} 49. Nf6+ {[%emt 0:00:49]} Kg7 {[%emt 0:00:05]} 50. Re7+ {[%emt 0:00:50]} Kh6 {[%emt 0:00:06]} 51. Rh7+ {[%emt 0:01:13][%mdl 32768] Weighted Error Value: White=0.49/Black=0.79 Loss on time!?  Loses game:     	---       	Black=2      Mistake:       	White=8     	Black=13     Inaccurate:     	White=6     	Black=4      OK:         	White=9     	Black=11     Best:        	White=2     	Black=3      Strong:       	White=2     	---} 1-0